Cogmind - Beta 13 X1 @@@ ROGUE MODE // 2023.10.03 @ 13:29:09 Player: Exp. Geonium Core Result: Destroyed by G-34 Mercenary with Small Laser Performance ------------- Evolutions (0) 0 Regions Visited (4) 800 Robots Destroyed (7) 35 Value Destroyed (93) 93 Prototype IDs (25) 500 Alien Tech Used (0) 0 Bonus (300) 300 TOTAL SCORE: 1728 Bonus ------- Aligned with FarCom 300 Cogmind --------- Core Integrity 0/250 Matter 300/300 Energy 223/265 System Corruption 4% Temperature Cool (6) Movement Treading (480) Ox4 Location -9/Mines Parts ------- > --- POWER (1) -------- Reinforced Ion Engine > --- PROPULSION (2) --- Light Treads > --- UTILITY (2) ------ Huge Storage Unit > --- WEAPON (2) ------- (None) > --- INVENTORY (25) --- Ion Engine Light Treads Wheel Compact Wheel Armored Wheel Armored Wheel Armored Wheel Modified TNC Hardened Light Armor Plating Hardened Light Armor Plating Hardened Light Armor Plating Hacking Suite Army-in-a-Box (30/30) Chronowheel Peak State ------------ > --- POWER ------------ Light Ion Engine > --- PROPULSION ------- Armored Wheel Armored Wheel > --- UTILITY ---------- Huge Storage Unit Hardened Light Armor Plating > --- WEAPON ----------- Assault Rifle Light Assault Rifle > --- INVENTORY -------- Ion Engine Light Treads Light Treads Wheel Compact Wheel Armored Wheel Armored Wheel Modified TNC Hardened Light Armor Plating Hardened Light Armor Plating Hardened Light Armor Plating Hacking Suite Army-in-a-Box Chronowheel Assault Rifle [Rating: 19] Favorites ----------- Power Light Ion Engine Engine Light Ion Engine Propulsion Armored Wheel Treads Light Treads Leg Aluminum Leg Wheel Armored Wheel Utility Huge Storage Unit Storage Huge Storage Unit Protection Hardened Light Armor Plating Weapon Assault Rifle Ballistic Gun Assault Rifle Build | -11 -10 -10 -10 -9 ------- Run | Jun Mat Min Exi Min Slots Evolved . | . . . . . Power . | . . . . . Propulsion . | . . . . . Utility . | . . . . . Weapon . | . . . . . Parts Attached 8 | . 4 . . 4 Power 1 | . . . . 1 Engine 1 | . . . . 1 Core . | . . . . . Reactor . | . . . . . Propulsion 4 | . 2 . . 2 Treads 2 | . . . . 2 Leg . | . . . . . Wheel 2 | . 2 . . . Hover . | . . . . . Flight . | . . . . . Utility 2 | . 2 . . . Device . | . . . . . Storage 1 | . 1 . . . Processor . | . . . . . Hackware . | . . . . . Protection 1 | . 1 . . . Artifact . | . . . . . Weapon 1 | . . . . 1 Energy Gun . | . . . . . Energy Cannon . | . . . . . Ballistic Gun 1 | . . . . 1 Ballistic Cannon . | . . . . . Launcher . | . . . . . Special Weapon . | . . . . . Impact Weapon . | . . . . . Slashing Weapon . | . . . . . Piercing Weapon . | . . . . . Special Melee Weapon . | . . . . . Unidentified Prototypes . | . . . . . Parts Lost 7 | . . . . 7 Power 1 | . . . . 1 Propulsion 2 | . . . . 2 Utility 1 | . . . . 1 Weapon 3 | . . . . 3 Highest Loss Streak 6 | . . . . 6 To Critical Strikes . | . . . . . Average Slot Usage (%) 92 | . 91 100 100 63 Engine 12 | . 14 14 14 6 Treads 1 | . . . . 14 Leg 3 | . 15 . . . Wheel 22 | . 12 28 28 11 Storage 14 | . 14 14 14 14 Protection 10 | . 5 14 14 6 Ballistic Gun 25 | . 28 28 28 10 Naked Turns . | . . . . . Heaviest Build 91 | 11 91 91 91 90 Greatest Support 40 | 20 24 24 24 40 Greatest Overweight (x) 7 | . 3 3 3 7 Average Overweight (x) 2 | . . 3 3 3 Largest Inventory Capacity 25 | . 25 25 25 25 Average Capacity 22 | . 15 25 25 25 Most Carried 20 | . 12 12 20 20 Average Carried 14 | . 8 12 16 19 Final Capacity 25 | 8 25 25 25 25 Final Carried 20 | 6 12 12 20 19 Class Distribution -------------------- 100% | Mutant Dominant Class ---------------- Mutant | -10/Materials Mutant | -10/Mines Mutant | -10/Exiles Mutant | -9/Mines Resources | -11 -10 -10 -10 -9 ----------- Run | Jun Mat Min Exi Min Matter Collected 333 | 160 88 24 . 61 Remotely . | . . . . . Salvage Created 140 | . 85 . . 55 Parts 9 | . 7 . . 2 Haulers Intercepted . | . . . . . Recyclers Shooed . | . . . . . Parts Field Recycled . | . . . . . Retrieved Matter . | . . . . . Parts Self-Destructed . | . . . . . Prevented . | . . . . . Kills | -11 -10 -10 -10 -9 ------- Run | Jun Mat Min Exi Min Combat Hostiles Destroyed 5 | . 2 . . 3 Melee 2 | . . . . 2 Guns 3 | . 2 . . 1 Classes Destroyed 4 | . 3 . . 1 Worker 1 | . 1 . . . Operator 1 | . 1 . . . Swarmer 4 | . 2 . . 2 Brawler 1 | . . . . 1 Best Kill Streak 3 | . 3 . . 2 Combat Bots Only 2 | . 2 . . 2 Max Kills in Single Turn 2 | . 2 . . 1 Gunslinging 1 | . 1 . . . Exploded . | . . . . . Melee 1 | . . . . 1 Uniques/NPCs Destroyed . | . . . . . Combat | -11 -10 -10 -10 -9 -------- Run | Jun Mat Min Exi Min Damage Taken 1276 | . 62 10 . 1204 Core 255 | . 8 . . 247 Absorbed by Shields . | . . . . . Core Remaining (%) 100 | 100 . . . . Volleys Fired 23 | . 8 . . 15 Largest 2 | . 2 . . 2 Hottest 40 | . 40 . . 40 Shots Fired 42 | . 16 . . 26 Gun 42 | . 16 . . 26 Cannon . | . . . . . Launcher . | . . . . . Special . | . . . . . Kinetic 42 | . 16 . . 26 Thermal . | . . . . . Explosive . | . . . . . Electromagnetic . | . . . . . Robot Hit Streak 7 | . 4 . . 7 Robot Miss Streak 3 | . 3 . . 1 Penetration Max . | . . . . . Secondary Targets 1 | . 1 . . . Max Gunslinging Chain 1 | . 1 . . . Shots Hit Robots 29 | . 10 . . 19 Core Hits 7 | . 4 . . 3 Critical Kills . | . . . . . Critical Parts Destroyed . | . . . . . Critical Strikes . | . . . . . Melee Attacks . | . . . . . Impact . | . . . . . Slashing . | . . . . . Piercing . | . . . . . Sneak Attacks . | . . . . . Combat Hostiles . | . . . . . Follow-up Attacks . | . . . . . Damage Inflicted 356 | . 110 . . 246 Guns 306 | . 110 . . 196 Cannons . | . . . . . Explosions . | . . . . . Melee . | . . . . . Ramming 50 | . . . . 50 Kinetic 306 | . 110 . . 196 Thermal . | . . . . . Explosive . | . . . . . Electromagnetic . | . . . . . Impact . | . . . . . Slashing . | . . . . . Piercing . | . . . . . Highest Corruption 4 | . . . . 4 Average Corruption 4 | . . . . 4 Corruption Purged . | . . . . . Corruption Blocked . | . . . . . Effects 3 | . . . . 3 Energy Discharges 2 | . . . . 2 Weapon Failures 1 | . . . . 1 Overload Shots . | . . . . . Overflow Damage . | . . . . . Projectiles . | . . . . . Explosions . | . . . . . Melee . | . . . . . Knockbacks . | . . . . . Impact . | . . . . . Kinetic . | . . . . . Secondary . | . . . . . Self-Inflicted Damage . | . . . . . Shots . | . . . . . Rammed 15 | . . . . 15 Targets Rammed 17 | . . . . 17 Kicked . | . . . . . Crushed 2 | . . . . 2 Highest Temperature 43 | . 20 . . 43 Average Temperature 16 | . 9 . . 20 Received Heat Transfer 312 | . . . . 312 Siege Activations . | . . . . . Robots Corrupted . | . . . . . Combat Hostiles . | . . . . . Parts Fried . | . . . . . Impact Corruptions . | . . . . . Robots Melted . | . . . . . Combat Hostiles . | . . . . . Parts Melted . | . . . . . Heat Transferred . | . . . . . Parts Sabotaged . | . . . . . Parts Stolen . | . . . . . Parts Stripped . | . . . . . Power Chain Reactions . | . . . . . Missiles Intercepted . | . . . . . Alert | -11 -10 -10 -10 -9 ------- Run | Jun Mat Min Exi Min Peak Influence 103 | . 103 39 . 50 Initial 39 | . . 39 . . Average 36 | . 42 39 . 22 Maximum Alert Level . | . . . . . Low Security (%) 100 | . 100 100 . 100 Level 1 . | . . . . . Level 2 . | . . . . . Level 3 . | . . . . . Level 4 . | . . . . . Level 5 . | . . . . . High Security . | . . . . . Max Security . | . . . . . Squads Dispatched 2 | . 2 . . . Investigation 1 | . 1 . . . Extermination . | . . . . . Reinforcement 1 | . 1 . . . Assault . | . . . . . Garrison . | . . . . . Intercept . | . . . . . Searches Triggered . | . . . . . Construction Impeded . | . . . . . Haulers Reinforced . | . . . . . Active Scanning Responses . | . . . . . Cargo Convoy Interrupts . | . . . . . Stealth | -11 -10 -10 -10 -9 --------- Run | Jun Mat Min Exi Min Distress Signals 1 | . 1 . . . Communications Jammed . | . . . . . Distress Signals . | . . . . . Times Spotted 16 | . 5 5 . 6 Peak Tracking Total 6 | . 4 3 . 6 Tactical Retreats . | . . . . . Traps | -11 -10 -10 -10 -9 ------- Run | Jun Mat Min Exi Min Traps Triggered . | . . . . . Indirectly . | . . . . . Trap Hack Attempts . | . . . . . Triggered . | . . . . . Disarmed . | . . . . . Reprogrammed . | . . . . . Reused . | . . . . . Traps Extracted . | . . . . . Installed . | . . . . . Triggered . | . . . . . Machines | -11 -10 -10 -10 -9 ---------- Run | Jun Mat Min Exi Min Machines Disabled . | . . . . . Max in Single Turn . | . . . . . Machines Repaired . | . . . . . Machines Sabotaged . | . . . . . Overloaded Fab Kills . | . . . . . Hacking | -11 -10 -10 -10 -9 --------- Run | Jun Mat Min Exi Min Machines Accessed 8 | . 6 . 2 . Terminals 6 | . 6 . . . Fabricators . | . . . . . Repair Stations . | . . . . . Recycling Units . | . . . . . Scanalyzers . | . . . . . Garrison Access . | . . . . . Total Hacks 18 | . 16 . 2 . Successful 8 | . 6 . 2 . Failed 9 | . 9 . . . Catastrophic . | . . . . . Database Lockouts 1 | . 1 . . . Manual 10 | . 9 . 1 . Terminals 16 | . 16 . . . Fabricators . | . . . . . Repair Stations . | . . . . . Recycling Units . | . . . . . Scanalyzers . | . . . . . Garrison Access . | . . . . . Terminal Hacks 7 | . 5 . 2 . Record 1 | . . . 1 . Robot Analysis 1 | . 1 . . . Prototype ID Bank 1 | . 1 . . . Branch Access Points 1 | . 1 . . . Emergency Access Points 1 | . 1 . . . Hauler Manifests 1 | . 1 . . . Derelict Proto ID Bank 1 | . . . 1 . Fabricator Hacks . | . . . . . Repair Station Hacks . | . . . . . Recycling Unit Hacks . | . . . . . Scanalyzer . | . . . . . Garrison Access Hacks . | . . . . . Unauthorized Hacks 1 | . 1 . . . Terminals 1 | . 1 . . . Operators 1 | . 1 . . . Fabricators . | . . . . . Repair Stations . | . . . . . Recycling Units . | . . . . . Scanalyzers . | . . . . . Garrison Access . | . . . . . Data Cores Recovered . | . . . . . Used . | . . . . . Hacking Detections 6 | . 6 . . . Full Trace Events 1 | . 1 . . . Feedback Events . | . . . . . Feedback Blocked . | . . . . . Robot Schematics Acquired . | . . . . . Robots Built . | . . . . . Authchips . | . . . . . Time . | . . . . . Total Robot Build Rating . | . . . . . Part Schematics Acquired . | . . . . . Parts Built . | . . . . . Authchips . | . . . . . Time . | . . . . . Total Part Build Rating . | . . . . . Parts Repaired . | . . . . . Time . | . . . . . Parts Recycled . | . . . . . Recycled Matter . | . . . . . Retrieved Matter . | . . . . . Retrieved Components . | . . . . . Parts Scanalyzed . | . . . . . Part Schematics Acquired . | . . . . . Parts Damaged . | . . . . . Bothacking | -11 -10 -10 -10 -9 ------------ Run | Jun Mat Min Exi Min Used RIF Installer . | . . . . . Robots Hacked . | . . . . . Non-combat . | . . . . . Combat . | . . . . . Robot Hacks Applied . | . . . . . Relay Couplers Released . | . . . . . Fabnet Peak Effective % . | . . . . . Robots Rewired . | . . . . . Allies Hacked . | . . . . . Hacks Repelled . | . . . . . Allies | -11 -10 -10 -10 -9 -------- Run | Jun Mat Min Exi Min Total Allies . | . . . . . Largest Group . | . . . . . Highest-Rated Group . | . . . . . Highest-Rated Ally . | . . . . . Total Orders . | . . . . . Ally Attacks . | . . . . . Total Damage . | . . . . . Kills . | . . . . . Allies Corrupted . | . . . . . Allies Melted . | . . . . . Intel | -11 -10 -10 -10 -9 ------- Run | Jun Mat Min Exi Min Robot Analysis Total 1 | . 1 . . . Derelict Logs Recovered . | . . . . . Drone Launches . | . . . . . Drone Recoveries . | . . . . . Exploration | -11 -10 -10 -10 -9 ------------- Run | Jun Mat Min Exi Min Turns Passed 830 | . 206 138 381 105 Spaces Moved 508 | 1 136 87 281 3 Core . | . . . . . Treads 2 | . . . . 2 Legs 93 | 1 92 . . . Wheels 413 | . 44 87 281 1 Hover . | . . . . . Flight . | . . . . . Fastest Speed 90 | 120 90 135 135 195 Average Speed 132 | 120 124 135 135 251 Slowest Speed 320 | 120 135 135 135 320 Overloaded Moves . | . . . . . Propulsion Burnouts . | . . . . . Robots Hopped . | . . . . . Cave-ins Triggered . | . . . . . Exploration Rate (%) 23 | 2 23 26 61 4 Regions Visited 4 Branch Regions 3 Pre-discovered Areas 1 | . . . 1 . Known Exits Taken 1 | . 1 . . . Unknown Exits Taken 3 | 1 . 1 1 . Scrap Searched 1 | . . 1 . . Spaces Dug . | . . . . . Terrain Destroyed . | . . . . . Melee . | . . . . . Projectile . | . . . . . AOE . | . . . . . Terrain Rammed . | . . . . . Walls Destroyed . | . . . . . Machines Disabled . | . . . . . Actions | -11 -10 -10 -10 -9 --------- Run | Jun Mat Min Exi Min Total 588 | . 158 107 283 40 Wait 22 | . 1 21 . . Move 504 | . 135 86 280 3 Hop . | . . . . . Pick Up 11 | . 7 . 3 1 Fast Attach 4 | . 3 . . 1 Attach 3 | . 1 . . 2 Detach . | . . . . . Swap 1 | . . . . 1 Drop 3 | . 3 . . . Fire 23 | . 8 . . 15 Melee . | . . . . . Ram . | . . . . . Kick . | . . . . . Crush 17 | . . . . 17 Escape Stasis . | . . . . . Rewire . | . . . . . Trap . | . . . . . Miscellaneous . | . . . . . Route ------- -11/Junkyard -10/Materials (discovered 2 exits: *Min x2) -10/Mines -10/Exiles -9/Mines History --------- Turn | Location | Event 1 | -11/Junkyard | Discovered new exit (range 0) 1 | -11/Junkyard | Entered Materials 17 | -10/Materials | Identified exit to Mines 149 | -10/Materials | Central database locked down 193 | -10/Materials | Met 8R-AWN 207 | -10/Materials | Entered Mines 209 | -10/Mines | Followed 8R-AWN into the Mines 293 | -10/Mines | Discovered new exit (range 7) 302 | -10/Mines | Build established: Mutant 345 | -10/Mines | Entered Exiles 377 | -10/Exiles | Welcomed by 8R-AWN 402 | -10/Exiles | Met EX-HEX 444 | -10/Exiles | Met EX-BIN 460 | -10/Exiles | Aligned with FarCom system 462 | -10/Exiles | Given EX-Vault access code 493 | -10/Exiles | Opened EX-Vault 501 | -10/Exiles | Found Modified TNC 504 | -10/Exiles | Found Chronowheel 507 | -10/Exiles | Found Army-in-a-Box 533 | -10/Exiles | Warned to stay clear of 0b10 Research branches 571 | -10/Exiles | Met EX-DEC 623 | -10/Exiles | Discovered new exit (range 12) 677 | -10/Exiles | Learned location of Zion (-7) 726 | -10/Exiles | Stole three prototypes: Modified TNC, Army-in-a-Box, Chronowheel 726 | -10/Exiles | Entered Mines 768 | -9/Mines | Core integrity fell below 50% 806 | -9/Mines | Lost 6 parts (1p1n1u3w) 808 | -9/Mines | Core integrity fell below 20% 831 | -9/Mines | Destroyed by G-34 Mercenary with Small Laser Last Messages --------------- 00799_ K-01 Serf collects debris. 00800_ Slammed into G-34 Mercenary. 00803_ K-01 Serf collects debris. 00803_ Slammed into G-34 Mercenary. 00806_ K-01 Serf collects debris. 00807_ Slammed into G-34 Mercenary. 00809_ K-01 Serf collects debris. 00810_ Slammed into G-34 Mercenary. 00813_ K-01 Serf collects debris. 00813_ Slammed into G-34 Mercenary. 00816_ K-01 Serf collects debris. 00816_ Slammed into G-34 Mercenary. 00819_ Lgt. Treads destroyed. 00819_ Slammed into G-34 Mercenary. 00820_ K-01 Serf collects debris. 00824_ Slammed into G-34 Mercenary. 00826_ K-01 Serf collects debris. 00829_ System corrupted: Energy discharge (-66). 00829_ Slammed into G-34 Mercenary. 00830_ K-01 Serf collects debris. Map ----- +----------------------------------------------------+ | ?????????????????????????????????????????????????? | | ?????????????????????????????????????????????????? | | ?????????????????????????????????????????????????? | | ?????????????????????????????????????????????????? | | ?????????????????????????????????????????????????? | | ?????????????????????????????????????????????????? | | ?????????????????????????????????????????????????? | | ?????????????????????????????????????????????????? | | ?????????????????????????????????????????????????? | | ?????????????????????????????????????????????????? | | ????????????????????? ??????????????????????????? | | ????????????????????? ??????????????????????????? | | ????????????????????? ??????????????????????????? | | ?????????????????????# ??????????????????????????? | | ?????????????????????# ??????????????????????????? | | ?????????????????????# ??????????????????????????? | | ?????????????????????# ??????????????????????????? | | ?????????????????????# ##????????????????????????? | | ??????????????#??????# ????????????????????????? | | ?????????????## ?????# #????????????????????????? | | ?????????????# ????# #????????????????????????? | | ?????????????# ???# ###??????????????????????? | | ??????????????# ### %! ##?????????????????????? | | ?????????????## u k%#?????????????????????? | | ?????????????# %*%%#?????????????????????? | | ????????????# ## %=@%#?????????????????????? | | ???????????# ?????## %=g##?????????????????????? | | ?????????????????????######??????????????????????? | | ?????????????????????????????????????????????????? | | ?????????????????????????????????????????????????? | | ?????????????????????????????????????????????????? | | ?????????????????????????????????????????????????? | | | | | | | | | | | | | | | | | | | | | | | | | | | | | | | | | | | | | +----------------------------------------------------+ Best States ------------- Heat Dissipation 25 Energy Generation 12 Energy Capacity 265 Matter Stores 300 Matter Capacity 300 Sight Range 16 Terrain Scan Density 10 Armor Coverage 150 Evasion (%) 55 Recoil Reduction 2 Item Schematics ----------------- None Robot Schematics ------------------ None Fabricated ------------ Nothing Alien Tech Used ----------------- None Achievements -------------- None Challenges ------------ None Game ------ Seed WeldingSchematicTearclaws Manual? 0 Play Time 00:09:51 Cumulative 452.2 hours Start 2023.10.03 @ 13:07:57 End 2023.10.03 @ 13:29:09 Sessions 1 Manual Loads 0 Difficulty Rogue Special Mode None Game No. 505 Rogue 505 Adventurer 0 Explorer 0 Win Type - Total 12 Types 8/0/3/1/0/0/0/0/0 Lore% 81 Gallery% 89 Achievement% 80 Wizard Run 0 Options --------- ASCII 0 Keyboard 0 Movement Numpad Keybinds 0 Fullscreen 1 Font 18/Terminus Map View 76x50 Tactical HUD 1 Map Filters NONE Filters NONE Steam 1 RUN: e823adb6-ec41-4cc0-a857-990d8fa32fdc